fUST/lending_fUST_20240819
["ID","MTS","AMOUNT","RATE_DAILY","PERIOD"]
[335288873,1724073047449,-500.0,0.00016986,2]
[335288874,1724073047461,-500.0,0.00016986,2]
[335288875,1724073047475,-500.0,0.00016986,2]
[335288876,1724073047484,-500.0,0.00016986,2]
[335288877,1724073047494,-500.0,0.00016986,2]
[335288878,1724073047504,-500.0,0.00016986,2]
[335288879,1724073047513,-500.0,0.00016986,2]
[335288880,1724073047522,-500.0,0.00016986,2]
[335288881,1724073047532,-500.0,0.00016986,2]
[335288882,1724073047541,-500.0,0.00016986,2]
[335288883,1724073047551,-500.0,0.00016986,2]
[335288884,1724073047561,-529.87836986,0.00016986,2]
[335288885,1724073047570,-500.00331712,0.00016986,2]
[335288886,1724073047579,-500.0,0.00016986,2]
[335288887,1724073047589,-500.0,0.00016986,2]
[335288888,1724073047600,-500.0,0.00016986,2]
[335288889,1724073047610,-619.34781917,0.00016986,2]
[335288890,1724073047619,-500.0,0.00016986,2]
[335288891,1724073047628,-500.0,0.00016986,2]
[335288892,1724073047638,-500.0,0.00016986,2]
[335288893,1724073047649,-500.0,0.00016986,2]
[335288894,1724073047659,-500.0,0.00016986,2]
[335288895,1724073047669,-500.0,0.00016986,2]
[335288896,1724073047678,-500.0,0.00016986,2]
[335288897,1724073047687,-500.0,0.00016986,2]
[335288898,1724073047697,-500.0,0.00016986,2]
[335288899,1724073047706,-500.0,0.00016986,2]
[335288900,1724073047716,-151.0,0.00016986,2]
[335288901,1724073047727,-500.0,0.00016986,2]
[335288902,1724073047738,-500.0,0.00016986,2]
[335288903,1724073047749,-500.0,0.00016986,2]
[335288904,1724073047760,-500.0,0.00016986,2]
[335288905,1724073047771,-500.0,0.00016986,2]
[335288906,1724073047781,-500.0,0.00016986,2]
[335288907,1724073047791,-500.0,0.00016986,2]
[335288908,1724073047801,-500.0,0.00016986,2]
[335288909,1724073047811,-500.0,0.00016986,2]
[335288910,1724073047822,-500.0,0.00016986,2]
[335288911,1724073047832,-500.0,0.00016986,2]
[335288912,1724073047842,-516.30825225,0.00016986,2]
[335288913,1724073047859,-500.0,0.00016986,2]
[335288914,1724073047869,-500.0,0.00016986,2]
[335288915,1724073047879,-500.0,0.00016986,2]
[335288916,1724073047889,-500.0,0.00016986,2]
[335288917,1724073047898,-506.09466725,0.00016986,2]
[335288918,1724073047907,-500.0,0.00016986,2]
[335288919,1724073047917,-500.0,0.00016986,2]
[335288920,1724073047926,-511.3505974,0.00016986,2]
[335288921,1724073047936,-500.0,0.00016986,2]
[335288922,1724073047945,-500.0,0.00016986,2]
[335288923,1724073047954,-500.0,0.00016986,2]
[335288924,1724073047964,-500.0,0.00016986,2]
[335288925,1724073047973,-500.0,0.00016986,2]
[335288926,1724073047982,-500.0,0.00016986,2]
[335288927,1724073047991,-500.0,0.00016986,2]
[335288928,1724073048001,-500.0,0.00016986,2]
[335288929,1724073048011,-500.0,0.00016986,2]
[335288930,1724073048021,-151.0,0.00016986,2]
[335288931,1724073048031,-500.0,0.00016986,2]
[335288932,1724073048042,-430.44188644,0.00016986,2]
[335288933,1724073048051,-500.0,0.00016986,2]
[335288934,1724073048061,-500.0,0.00016986,2]
[335288935,1724073048072,-728.56,0.00016986,2]
[335288936,1724073048082,-500.0,0.00016986,2]
[335288937,1724073048092,-500.0,0.00016986,2]
[335288938,1724073048103,-1667.62,0.00016986,2]
[335288939,1724073048113,-610.5922932,0.00016986,2]
[335288940,1724073048122,-151.0,0.00016986,2]
[335288941,1724073048132,-500.0,0.00016986,2]
[335288942,1724073048142,-475.00589116,0.00016986,2]
[335288943,1724073048151,-500.0,0.00016986,2]
[335288944,1724073048160,-500.0,0.00016986,2]
[335288945,1724073048170,-500.0,0.00016986,2]
[335288946,1724073048180,-625.52,0.00016986,2]
[335288947,1724073048190,-500.0,0.00016986,2]
[335288948,1724073048200,-500.0,0.00016986,2]
[335288949,1724073048210,-500.0,0.00016986,2]
[335288950,1724073048220,-500.0,0.00016986,2]
[335288951,1724073048230,-500.0,0.00016986,2]
[335288952,1724073048240,-500.0,0.00016986,2]
[335288953,1724073048250,-500.0,0.00016986,2]
[335288954,1724073048260,-500.0,0.00016986,2]
[335288955,1724073048271,-500.0,0.00016986,2]
[335288956,1724073048280,-500.0,0.00016986,2]
[335288957,1724073048290,-500.0,0.00016986,2]
[335288958,1724073048299,-500.0,0.00016986,2]
[335288959,1724073048311,-500.0,0.00016986,2]
[335288960,1724073048322,-500.0,0.00016986,2]
[335288961,1724073048332,-500.0,0.00016986,2]
[335288962,1724073048342,-500.0,0.00016986,2]
[335288963,1724073048352,-1371.65,0.00016986,2]
[335288964,1724073048362,-500.0,0.00016986,2]
[335288965,1724073048371,-500.0,0.00016986,2]
[335288966,1724073048381,-500.0,0.00016986,2]
[335288967,1724073048391,-500.0,0.00016986,2]
[335288968,1724073048401,-622.82011096,0.00016986,2]
[335288969,1724073048411,-500.0,0.00016986,2]
[335288970,1724073048420,-500.0,0.00016986,2]
[335288971,1724073048430,-500.0,0.00016986,2]
[335288972,1724073048440,-500.0,0.00016986,2]
[335288973,1724073048450,-500.0,0.00016986,2]
[335288974,1724073048461,-500.0,0.00016986,2]
[335288975,1724073048474,-500.0,0.00016986,2]
[335288976,1724073048484,-500.0,0.00016986,2]
[335288977,1724073048493,-344.64114859,0.00016986,2]
[335288978,1724073048504,-500.0,0.00016986,2]
[335288979,1724073048515,-500.0,0.00016986,2]
[335288980,1724073048525,-500.0,0.00016986,2]
[335288981,1724073048537,-540.74847848,0.00016986,2]
[335288982,1724073048548,-500.0,0.00016986,2]
[335288983,1724073048560,-500.0,0.00016986,2]
[335288984,1724073048570,-500.0,0.00016986,2]
[335288985,1724073048580,-500.0,0.00016986,2]
[335288986,1724073048590,-500.0,0.00016986,2]
[335288987,1724073048603,-500.0,0.00016986,2]
[335288988,1724073048617,-500.0,0.00016986,2]
[335288989,1724073048627,-500.0,0.00016986,2]
[335288990,1724073048638,-518.56,0.00016986,2]
[335288991,1724073048648,-500.0,0.00016986,2]
[335288992,1724073048658,-500.0,0.00016986,2]
[335288993,1724073048668,-500.0,0.00016986,2]
[335288994,1724073048677,-500.0,0.00016986,2]
[335288995,1724073048687,-500.0,0.00016986,2]
[335288996,1724073048697,-500.0,0.00016986,2]
[335288997,1724073048709,-500.0,0.00016986,2]
[335288998,1724073048721,-500.0,0.00016986,2]
[335288999,1724073048732,-500.0,0.00016986,2]
[335289000,1724073048742,-377.74839251,0.00016986,2]
[335289001,1724073048753,-500.0,0.00016986,2]
[335289002,1724073048763,-500.0,0.00016986,2]
[335289003,1724073048773,-500.0,0.00016986,2]
[335289004,1724073048783,-500.0,0.00016986,2]
[335289005,1724073048793,-527.5165738,0.00016986,2]
[335289006,1724073048804,-500.0,0.00016986,2]
[335289007,1724073048814,-500.0,0.00016986,2]
[335289008,1724073049000,-151.0,0.00016986,2]
[335289009,1724073049012,-500.0,0.00016986,2]
[335289010,1724073049022,-500.0,0.00016986,2]
[335289011,1724073049033,-500.0,0.00016986,2]
[335289012,1724073049043,-500.0,0.00016986,2]
[335289013,1724073049052,-500.0,0.00016986,2]
[335289014,1724073049062,-253.78065924,0.00016986,2]
[335289015,1724073049072,-500.0,0.00016986,2]
[335289016,1724073049082,-500.0,0.00016986,2]
[335289017,1724073049092,-500.0,0.00016986,2]
[335289018,1724073049105,-500.0,0.00016986,2]
[335289019,1724073049115,-500.0,0.00016986,2]
[335289020,1724073049124,-500.0,0.00016986,2]
[335289021,1724073049134,-151.0,0.00016986,2]
[335289022,1724073049144,-500.0,0.00016986,2]
[335289023,1724073049153,-500.0,0.00016986,2]
[335289024,1724073049163,-500.0,0.00016986,2]
[335289025,1724073049173,-500.0,0.00016986,2]
[335289026,1724073049182,-500.0,0.00016986,2]
[335289027,1724073049192,-500.0,0.00016986,2]
[335289028,1724073049202,-500.0,0.00016986,2]
[335289029,1724073049211,-500.0,0.00016986,2]
[335289030,1724073049222,-1773.4,0.00016986,2]
[335289031,1724073049232,-500.0,0.00016986,2]
[335289032,1724073049241,-500.0,0.00016986,2]
[335289033,1724073049251,-500.0,0.00016986,2]
[335289034,1724073049262,-2163.6,0.00016986,2]
[335289035,1724073049272,-1338.14,0.00016986,2]
[335289036,1724073049281,-705.88,0.00016986,2]
[335289037,1724073049291,-500.0,0.00016986,2]
[335289038,1724073049301,-500.0,0.00016986,2]
[335289039,1724073049311,-500.0,0.00016986,2]
[335289040,1724073049320,-905.3,0.00016986,2]
[335289041,1724073049330,-500.0,0.00016986,2]
[335289042,1724073049340,-500.0,0.00016986,2]
[335289043,1724073049350,-500.0,0.00016986,2]
[335289044,1724073049361,-151.0,0.00016986,2]
[335289045,1724073049370,-500.0,0.00016986,2]
[335289046,1724073049380,-500.0,0.00016986,2]
[335289047,1724073049390,-541.54875811,0.00016986,2]
[335289048,1724073049400,-500.0,0.00016986,2]
[335289049,1724073049409,-500.0,0.00016986,2]
[335289050,1724073049419,-500.0,0.00016986,2]
[335289051,1724073049428,-802.74,0.00016986,2]
[335289052,1724073049439,-500.0,0.00016986,2]
[335289053,1724073049448,-500.0,0.00016986,2]
[335289054,1724073049458,-500.63,0.00016986,2]
[335289055,1724073049472,-500.0,0.00016986,2]
[335289056,1724073049482,-500.0,0.00016986,2]
[335289057,1724073049493,-500.0,0.00016986,2]
[335289058,1724073049503,-500.0,0.00016986,2]
[335289059,1724073049514,-2115.25,0.00016986,2]
[335289060,1724073049524,-151.0,0.00016986,2]
[335289061,1724073049534,-500.0,0.00016986,2]
[335289062,1724073049547,-500.0,0.00016986,2]
[335289063,1724073049557,-500.0,0.00016986,2]
[335289064,1724073049567,-500.0,0.00016986,2]
[335289065,1724073049576,-723.89,0.00016986,2]
[335289066,1724073049585,-500.0,0.00016986,2]
[335289067,1724073049596,-500.0,0.00016986,2]
[335289068,1724073049608,-500.0,0.00016986,2]
[335289069,1724073049617,-500.0,0.00016986,2]
[335289070,1724073049627,-571.66,0.00016986,2]
[335289071,1724073049637,-5392.7,0.00016986,2]
[335289072,1724073049647,-215.27258151,0.00016986,2]
[335289073,1724073049657,-500.0,0.00016986,2]
[335289074,1724073049667,-500.0,0.00016986,2]
[335289075,1724073049677,-500.0,0.00016986,2]
[335289076,1724073049687,-500.0,0.00016986,2]
[335289077,1724073049697,-500.0,0.00016986,2]
[335289078,1724073049706,-500.0,0.00016986,2]
[335289079,1724073049716,-500.0,0.00016986,2]
[335289080,1724073049726,-641.41146727,0.00016986,2]
[335289081,1724073049736,-504.34105417,0.00016986,2]
[335289082,1724073049747,-500.0,0.00016986,2]
[335289083,1724073049757,-500.0,0.00016986,2]
[335289084,1724073049767,-500.0,0.00016986,2]
[335289085,1724073049777,-500.0,0.00016986,2]
[335289086,1724073049787,-500.0,0.00016986,2]
[335289087,1724073049796,-500.0,0.00016986,2]
[335289088,1724073049806,-500.0,0.00016986,2]
[335289089,1724073049816,-500.0,0.00016986,2]
[335289090,1724073049826,-500.0,0.00016986,2]
[335289091,1724073049836,-500.0,0.00016986,2]
[335289092,1724073049847,-500.0,0.00016986,2]
[335289093,1724073049867,-500.0,0.00016986,2]
[335289094,1724073049876,-500.0,0.00016986,2]
[335289095,1724073049886,-500.0,0.00016986,2]
[335289096,1724073049896,-500.0,0.00016986,2]
[335289097,1724073049906,-500.0,0.00016986,2]
[335289098,1724073049916,-1101.19,0.00016986,2]
[335289099,1724073049926,-500.0,0.00016986,2]
[335289100,1724073049936,-500.0,0.00016986,2]
[335289101,1724073049946,-500.0,0.00016986,2]
[335289102,1724073049955,-500.0,0.00016986,2]
[335289103,1724073049965,-504.06955807,0.00016986,2]
[335289104,1724073049974,-500.0,0.00016986,2]
[335289105,1724073049984,-500.0,0.00016986,2]
[335289106,1724073049993,-500.0,0.00016986,2]
[335289107,1724073050002,-500.0,0.00016986,2]
[335289108,1724073050012,-500.0,0.00016986,2]
[335289109,1724073050022,-701.89,0.00016986,2]
[335289110,1724073050031,-350.0,0.00016986,2]
[335289111,1724073050042,-500.0,0.00016986,2]
[335289112,1724073050051,-500.0,0.00016986,2]
[335289113,1724073050061,-500.0,0.00016986,2]
[335289114,1724073050070,-771.27,0.00016986,2]
[335289115,1724073050079,-673.76,0.00016986,2]
[335289116,1724073050089,-500.0,0.00016986,2]
[335289117,1724073050098,-500.0,0.00016986,2]
[335289118,1724073050108,-413.97220674,0.00016986,2]
[335289119,1724073050118,-500.0,0.00016986,2]
[335289120,1724073050128,-534.66,0.00016986,2]
[335289121,1724073050138,-500.0,0.00016986,2]
[335289122,1724073050147,-500.0,0.00016986,2]
[335289123,1724073050156,-500.0,0.00016986,2]
[335289124,1724073050166,-634.95,0.00016986,2]
[335289125,1724073050175,-682.48,0.00016986,2]
[335289126,1724073050185,-500.0,0.00016986,2]
[335289127,1724073050194,-500.0,0.00016986,2]
[335289128,1724073050203,-500.0,0.00016986,2]
[335289129,1724073050213,-547.3,0.00016986,2]
[335289130,1724073050222,-500.0,0.00016986,2]
[335289131,1724073050232,-1296.87,0.00016986,2]
[335289132,1724073050242,-500.0,0.00016986,2]
[335289133,1724073050253,-500.0,0.00016986,2]
[335289134,1724073050263,-500.0,0.00016986,2]
[335289135,1724073050272,-500.0,0.00016986,2]
[335289136,1724073050282,-500.0,0.00016986,2]
[335289137,1724073050291,-500.0,0.00016986,2]
[335289138,1724073050300,-500.0,0.00016986,2]
[335289139,1724073050310,-500.0,0.00016986,2]
[335289140,1724073050319,-500.0,0.00016986,2]
[335289141,1724073050329,-500.0,0.00016986,2]
[335289142,1724073050339,-500.0,0.00016986,2]
[335289143,1724073050350,-500.0,0.00016986,2]
[335289144,1724073050360,-500.0,0.00016986,2]
[335289145,1724073050370,-500.0,0.00016986,2]
[335289146,1724073050380,-500.0,0.00016986,2]
[335289147,1724073050389,-500.0,0.00016986,2]
[335289148,1724073050398,-391.2441703,0.00016986,2]
[335289149,1724073050408,-505.2321062,0.00016986,2]
[335289150,1724073050417,-1218.84,0.00016986,2]
[335289151,1724073050427,-500.0,0.00016986,2]
[335289152,1724073050437,-1413.67,0.00016986,2]
[335289153,1724073050446,-500.0,0.00016986,2]
[335289154,1724073050456,-5244.78933856,0.0001708,2]
[335289155,1724073050470,-1152.0,0.00017146,2]
[335289156,1724073050479,-8622.88601717,0.0001716,2]
[335289157,1724073050489,-4223.14230004,0.0001716,2]
[335289158,1724073051160,-906.0,0.0001579,2]
[335289159,1724073051171,-5085.89401077,0.0001579,2]
[335289160,1724073051181,-356.693647,0.00016438,2]
[335289161,1724073051190,-98.96698143,0.00016438,2]
[335289168,1724073519050,-2000.0,0.00014,10]
[335289169,1724073553780,-1500.0,0.00016438,10]
[335289218,1724073949150,-250.0,0.00011732,2]
[335289219,1724073949177,-250.0,0.00011764,2]
[335289220,1724073949205,-250.0,0.00011796,2]
[335289221,1724073949230,-13.94861,0.00011829,2]
[335289225,1724074150106,-300.0,0.0001113,2]
[335289226,1724074150128,-300.0,0.0001113,2]
[335289227,1724074150151,-1460.48535807,0.00011131,2]
[335289228,1724074168094,-780.05358786,0.00010958,2]
[335289229,1724074168116,-23439.51464193,0.00011131,2]
[335289230,1724074168139,-236.05139,0.00011829,2]
[335289231,1724074168160,-16318.75386369,0.00011829,2]
[335289232,1724074168181,-688.676981,0.00011842,2]
[335289233,1724074168202,-250.0,0.00011861,2]
[335289234,1724074168224,-250.0,0.00011893,2]
[335289235,1724074168245,-250.0,0.00011925,2]
[335289236,1724074168267,-250.0,0.00011957,2]
[335289237,1724074168289,-6395.00223029,0.00011987,2]
[335289273,1724074232202,-780.05358786,0.00010739,2]
[335289274,1724074232212,-10794.73432904,0.00011131,2]
[335289275,1724074232222,-1170.72217562,0.00011987,2]
[335289276,1724074232234,-6828.42942257,0.00011987,2]
[335289277,1724074232243,-250.0,0.00011989,2]
[335289278,1724074232253,-250.0,0.00012022,2]
[335289279,1724074232263,-250.0,0.00012054,2]
[335289280,1724074232273,-250.0,0.00012086,2]
[335289281,1724074232283,-250.0,0.00012118,2]
[335289282,1724074232293,-9659.27545044,0.0001212,2]
[335289283,1724074232303,-250.0,0.0001215,2]
[335289284,1724074232313,-300.0,0.00012162,2]
[335289285,1724074232322,-250.0,0.00012182,2]
[335289286,1724074232332,-84.68823956,0.00012215,2]
[335289287,1724074232350,-165.31176044,0.00012215,2]
[335289288,1724074232360,-250.0,0.00012247,2]
[335289289,1724074232372,-250.0,0.00012279,2]
[335289290,1724074232382,-250.0,0.00012311,2]
[335289291,1724074232392,-250.0,0.00012343,2]
[335289292,1724074232402,-1519.76208712,0.00012629,2]
[335289293,1724074232412,-850.86713135,0.00012629,2]
[335289294,1724074232422,-192.0011942,0.00012682,2]
[335289295,1724074232432,-1613.45959463,0.00012779,2]
[335289296,1724074232442,-252.34121387,0.00012782,2]
[335289297,1724074232452,-875.03409483,0.00012782,2]
[335289298,1724074232463,-456.67668375,0.00012886,2]
[335289299,1724074232473,-600.88577429,0.00012886,2]
[335289300,1724074232483,-196.81150092,0.00012886,2]
[335289301,1724074232492,-544.00882293,0.00012886,2]
[335289302,1724074232502,-520.61647298,0.00012898,2]
[335289303,1724074232513,-251.00877453,0.00012898,2]
[335289304,1724074232524,-309.3812352,0.00012898,2]
[335289305,1724074232535,-404.43330921,0.00012934,2]
[335289306,1724074232546,-157.09608348,0.00012934,2]
[335289307,1724074232556,-404.43330921,0.00012934,2]
[335289309,1724074232566,-674.38749211,0.00012934,2]
[335289310,1724074232575,-368.83399123,0.00012934,2]
[335289311,1724074232584,-210.23989812,0.00012971,2]
[335289312,1724074232599,-493.30764145,0.00012971,2]
[335289313,1724074232609,-703.9240343,0.00012971,2]
[335289314,1724074232621,-160.44466579,0.00012971,2]
[335289315,1724074232631,-728.79489661,0.00012971,2]
[335289316,1724074232644,-175.19105366,0.00012971,2]
[335289317,1724074232655,-704.11080979,0.00012971,2]
[335289318,1724074232666,-190.07446844,0.00012991,2]
[335289319,1724074232676,-862.44048895,0.00013,2]
[335289320,1724074232686,-5102.53908404,0.00013,2]
[335289321,1724074232696,-496.00187357,0.00013051,2]
[335289322,1724074232706,-420.0,0.00013378,2]
[335289323,1724074232716,-688.16584314,0.00013492,2]
[335289324,1724074232732,-15597.96033875,0.00013689,2]
[335289339,1724074238621,-250.0,0.00012791,2]
[335289340,1724074238631,-250.0,0.00012826,2]
[335289341,1724074238641,-250.0,0.00012861,2]
[335289342,1724074238650,-250.0,0.00012897,2]
[335289343,1724074238660,-250.0,0.00012932,2]
[335289344,1724074238669,-250.0,0.00012967,2]
[335289345,1724074238679,-202.66039526,0.00012971,2]
[335289346,1724074238689,-301.44035591,0.00012991,2]
[335289347,1724074238698,-250.0,0.00013002,2]
[335289348,1724074238708,-250.0,0.00013037,2]
[335289349,1724074238718,-117.53093789,0.00013072,2]
[335289368,1724074240720,-132.46906211,0.00013072,2]
[335289370,1724074240730,-250.0,0.00013107,2]
[335289372,1724074240740,-250.0,0.00013142,2]
[335289374,1724074240753,-250.0,0.00013177,2]
[335289376,1724074240764,-250.0,0.00013212,2]
[335289379,1724074240776,-250.0,0.00013247,2]
[335289381,1724074240787,-250.0,0.00013282,2]
[335289383,1724074240798,-250.0,0.00013317,2]
[335289385,1724074240809,-250.0,0.00013352,2]
[335289387,1724074240820,-250.0,0.00013388,2]
[335289389,1724074240831,-250.0,0.00013423,2]
[335289390,1724074240842,-25244.58420115,0.00013689,2]
[335289391,1724074240853,-201.0727844,0.00013698,2]
[335289392,1724074240863,-500.0,0.00013698,2]
[335289393,1724074240872,-500.0,0.00013698,2]
[335289394,1724074240882,-500.0,0.00013698,2]
[335289395,1724074240892,-500.0,0.00013698,2]
[335289396,1724074240902,-229.57378339,0.00013698,2]
[335289397,1724074240913,-524.14050237,0.00013698,2]
[335289398,1724074240923,-5000.0,0.00013699,2]
[335289399,1724074240932,-196.0,0.00013699,2]
[335289400,1724074240943,-1771.0,0.00013699,2]
[335289401,1724074240952,-3000.0,0.00013699,2]
[335289402,1724074240962,-627.76115,0.00013699,2]
[335289403,1724074240971,-500.0,0.00013699,2]
[335289404,1724074240981,-500.0,0.00013699,2]
[335289405,1724074240992,-500.0,0.00013699,2]
[335289406,1724074241002,-468.4193323,0.00013699,2]
[335289407,1724074241011,-373.94122105,0.00013699,2]
[335289408,1724074241021,-817.34023536,0.00013971,2]
[335289409,1724074241030,-24560.51652004,0.00014,2]
[335289410,1724074241039,-155.03616986,0.00014092,2]
[335289411,1724074241048,-313.295446,0.00014247,2]
[335289412,1724074241059,-234.44372,0.00014247,2]
[335289413,1724074241068,-12207.26982483,0.00014529,2]
[335289414,1724074241077,-587.0,0.00014716,2]
[335289415,1724074241087,-12886.69861989,0.00015,2]
[335289416,1724074241098,-200.43241264,0.00015707,7]
[335289417,1724074241108,-7895.53761022,0.0001588,2]
[335289418,1724074241117,-2000.0,0.0001588,2]
[335289419,1724074241126,-426.385485,0.0001589,2]
[335289420,1724074241136,-31635.5776899,0.0001598,2]
[335289421,1724074241146,-168.28085128,0.00016015,2]
[335289422,1724074241155,-574.18002641,0.00016095,2]
[335289423,1724074241164,-5244.78933856,0.00016181,2]
[335289424,1724074241174,-823.0,0.00016187,2]
[335289425,1724074241183,-168.28085127,0.00016214,2]
[335289426,1724074241193,-40842.5445399,0.00016328,2]
[335289427,1724074241203,-8622.88601717,0.00016338,2]
[335289428,1724074241213,-4223.14230004,0.00016338,2]
[335289429,1724074241222,-168.28085127,0.00016413,2]
[335289430,1724074241232,-1588.27834235,0.00016428,2]
[335289431,1724074241249,-163491.48401993,0.00016428,2]
[335289432,1724074241281,-40.25523722,0.00016428,2]
[335289433,1724074241294,-2603.7,0.00016428,2]
[335289434,1724074241306,-6990.10629059,0.00016428,2]
[335289435,1724074241317,-1731.19781452,0.00016428,2]
[335289462,1724074243359,-250.0,0.00013458,2]
[335289463,1724074243369,-17650.884958,0.00016428,2]
[335289485,1724074246452,-157.09608348,0.00012898,2]
[335289486,1724074246463,-152.58104168,0.00012934,2]
[335289487,1724074246475,-57.65885644,0.00012934,2]
[335289488,1724074246486,-190.07446844,0.00012989,2]
[335289489,1724074246497,-10116.81603639,0.00016428,2]
[335289490,1724074246506,-405.48908703,0.00016438,2]
[335289491,1724074246517,-500.0,0.00016438,2]
[335289492,1724074246526,-155.46671401,0.00016438,2]
[335289493,1724074246536,-500.0,0.00016438,2]
[335289494,1724074246546,-500.0,0.00016438,2]
[335289495,1724074246556,-500.0,0.00016438,2]
[335289496,1724074246566,-500.0,0.00016438,2]
[335289497,1724074246577,-500.0,0.00016438,2]
[335289498,1724074246586,-500.0,0.00016438,2]
[335289499,1724074246598,-633.72281945,0.00016438,2]
[335289500,1724074246609,-500.0,0.00016438,2]
[335289501,1724074246620,-500.0,0.00016438,2]
[335289502,1724074246630,-500.0,0.00016438,2]
[335289503,1724074246641,-500.0,0.00016438,2]
[335289504,1724074246651,-500.0,0.00016438,2]
[335289505,1724074246662,-500.0,0.00016438,2]
[335289506,1724074246672,-500.0,0.00016438,2]
[335289507,1724074246682,-500.0,0.00016438,2]
[335289508,1724074246692,-500.0,0.00016438,2]
[335289509,1724074246701,-500.0,0.00016438,2]
[335289510,1724074246712,-500.0,0.00016438,2]
[335289511,1724074246723,-551.81792467,0.00016438,2]
[335289512,1724074246735,-429.2947657,0.00016438,2]
[335289513,1724074246745,-538.93126061,0.00016438,2]
[335289514,1724074246756,-500.0,0.00016438,2]
[335289515,1724074246767,-500.0,0.00016438,2]
[335289516,1724074246776,-500.0,0.00016438,2]
[335289517,1724074246785,-196.24412175,0.00016438,2]
[335289518,1724074246794,-500.0,0.00016438,2]
[335289519,1724074246804,-500.0,0.00016438,2]
[335289520,1724074246813,-500.0,0.00016438,2]
[335289521,1724074246822,-498.79010921,0.00016438,2]
[335289522,1724074246832,-500.0,0.00016438,2]
[335289523,1724074246841,-500.0,0.00016438,2]
[335289524,1724074246853,-500.0,0.00016438,2]
[335289525,1724074246863,-500.0,0.00016438,2]
[335289526,1724074246872,-500.0,0.00016438,2]
[335289527,1724074246881,-500.0,0.00016438,2]
[335289528,1724074246890,-500.0,0.00016438,2]
[335289529,1724074246901,-500.0,0.00016438,2]
[335289530,1724074246917,-500.0,0.00016438,2]
[335289531,1724074246928,-512.09104494,0.00016438,2]
[335289532,1724074246938,-500.0,0.00016438,2]
[335289533,1724074246947,-500.0,0.00016438,2]
[335289534,1724074246958,-500.0,0.00016438,2]
[335289535,1724074246968,-500.0,0.00016438,2]
[335289536,1724074246977,-500.0,0.00016438,2]
[335289537,1724074246987,-510.99985506,0.00016438,2]
[335289538,1724074246997,-500.0,0.00016438,2]
[335289539,1724074247007,-500.0,0.00016438,2]
[335289540,1724074247017,-500.0,0.00016438,2]
[335289541,1724074247027,-500.0,0.00016438,2]
[335289542,1724074247037,-500.0,0.00016438,2]
[335289543,1724074247046,-500.0,0.00016438,2]
[335289544,1724074247056,-500.0,0.00016438,2]
[335289545,1724074247067,-520.25995937,0.00016438,2]
[335289546,1724074247076,-500.0,0.00016438,2]
[335289547,1724074247087,-500.0,0.00016438,2]
[335289548,1724074247099,-500.0,0.00016438,2]
[335289549,1724074247110,-500.0,0.00016438,2]
[335289550,1724074247121,-150.0,0.00016438,2]
[335289551,1724074247132,-500.0,0.00016438,2]
[335289552,1724074247142,-500.0,0.00016438,2]
[335289553,1724074247152,-500.0,0.00016438,2]
[335289554,1724074247162,-500.0,0.00016438,2]
[335289555,1724074247172,-572.94456762,0.00016438,2]